[Event "31st MPL National U18G Chess-ch 2022"]
[Site "Pollachi"]
[Date "2022.04.19"]
[Round "3.3"]
[White "Sindhusree K"]
[Black "Rindhiya V"]
[Result "0-1"]
[ECO "A25"]
[WhiteElo "1467"]
[BlackElo "1949"]
[Annotator "TA"]
[PlyCount "84"]
[EventDate "2022.04.18"]
[EventCountry "IND"]
[SourceTitle "playchess.com"]
[Source "ChessBase"]
[SourceQuality "1"]
[TimeControl "5400+30"]

{[%evp 15,84,22,18,-4,6,0,-2,-33,-21,-25,14,-14,0,-90,-11,-17,0,-11,22,-20,45,62,60,49,140,33,33,41,57,53,140,140,142,80,343,356,406,276,245,188,197,197,180,187,179,54,55,66,66,-233,-228,-522,-514,-440,-281,-295,-268,-347,-291,-302,-293,-288,-286,-334,-308,-329,-320,-321,-320,-348,-348]} 1. c4 {[%emt 0:00:22]} e5 {[%emt 0:00:06]} 2. Nc3 {[%emt 0:00:06]} Nc6 {[%emt 0:00:04]} 3. g3 {[%emt 0:00:05]} g6 {[%emt 0:00:03]} 4. Bg2 {[%emt 0:00:04]} Bg7 {[%emt 0:00:03]} 5. e3 {[%emt 0:00:05]} Nge7 {[%emt 0:00:15]} 6. Nge2 {[%emt 0:00:06]} d6 {[%emt 0:00:04]} 7. O-O {[%emt 0:00:07]} Be6 {[%emt 0:00:49]} 8. d3 {[%emt 0:03:54]} O-O {[%emt 0:00:10]} 9. a3 {[%emt 0:00:08] A25: English Opening vs King's Indian with ...Nc6 but without early d3.} Qd7 {[%emt 0:00:34]} 10. b4 {[%emt 0:00:44]} Bh3 {[%emt 0:01:09]} 11. Rb1 {[%emt 0:10:26] The position is equal.} Bxg2 {[%emt 0:00:07]} 12. Kxg2 {[%emt 0:00:04] [#]} d5 $146 {[%emt 0:11:21]} ({Predecessor:} 12... f5 13. Qb3 Kh8 14. f4 Rae8 15. Nd5 Nc8 16. Bd2 Nd8 17. a4 c6 18. Ndc3 Ne6 {0-1 (25) Gorshkov,L (2108)-Van Mechelen,J (2281) Roux 2009}) 13. Qc2 {[%emt 0:08:47]} Nd8 {[%emt 0:09:22]} 14. e4 {[%emt 0:17:37]} (14. Nxd5 $11 Nxd5 15. cxd5) 14... c6 {[%emt 0:02:14]} (14... d4 $1 $17 {[%cal Rd4c3]} 15. Nd5 f5) 15. f4 $11 {[%emt 0:04:40]} d4 {[%emt 0:26:29]} 16. Na4 {[%emt 0:00:24]} f5 {[%emt 0:03:58]} (16... b6 {keeps more tension.} 17. fxe5 Bxe5 18. Bh6 Re8) 17. fxe5 {[%emt 0:08:52] Strongly threatening Nc5.} (17. Nc5 $5 {[%cal Rc5d7]} Qc7 18. exf5 $11) 17... Bxe5 {[%emt 0:11:36]} (17... b6 $1 $11) 18. Nc5 {[%emt 0:02:58]} Qd6 {[%emt 0:00:32]} 19. Bf4 $1 $36 {[%emt 0:02:43][%mdl 2048] White fights for an advantage.} Re8 {[%emt 0:04:49]} (19... Bxf4 $14 20. Nxf4 (20. gxf4 b6 $11) 20... fxe4) 20. Nb3 {[%emt 0:08:45]} (20. Bxe5 $16 Qxe5 21. Qb2) 20... fxe4 $1 $14 {[%emt 0:03:34]} 21. Bxe5 {[%emt 0:01:30]} (21. dxe4 $2 d3 22. Bxe5 dxc2 $19) 21... Qxe5 {[%emt 0:02:18]} 22. Nexd4 {[%emt 0:03:34] Rbe1 is the strong threat.} (22. Nbxd4 Nf5 23. Nxf5 exd3 24. Qxd3 (24. Nh6+ Kg7 $17) 24... Qxe2+ 25. Qxe2 Rxe2+ 26. Kf3 Rxh2 $17) 22... Nf5 {[%emt 0:05:04]} ({Black should play} 22... c5 $1 $14 23. bxc5 Ndc6) 23. Nxf5 $16 {[%emt 0:00:53]} gxf5 {[%emt 0:00:03] [#]} 24. dxe4 {[%emt 0:03:55]} (24. Rbe1 $142 $1) 24... fxe4 $2 {[%emt 0:06:30][%mdl 8192]} (24... Qxe4+ $16 25. Qxe4 fxe4) 25. Nc5 $18 {[%emt 0:02:43] Black must now prevent Nd7.} Re7 {[%emt 0:03:13] Against Nd7} 26. Rbe1 {[%emt 0:00:50]} (26. Qf2 Ne6 $11) 26... e3 {[%emt 0:00:32][%cal Be4e3,Be3e2,Be2e1,Be1c2][%mdl 32]} 27. Rf5 {[%emt 0:01:47]} Qg7 {[%emt 0:01:11]} 28. Ne4 {[%emt 0:03:40]} Ne6 {[%emt 0:04:22]} 29. Nf6+ {[%emt 0:07:19]} (29. Rxe3 $2 Nd4 30. Qf2 (30. Nf6+ $2 Kh8 $19) 30... Nxf5 31. Qxf5 Rf8 $19) 29... Kh8 {[%emt 0:00:16] And now ...Nd4 would win.} 30. Nh5 {[%emt 0:01:53]} ({Wrong is} 30. Rxe3 $2 Nd4 31. Rxe7 Qxe7 $19) ({White has to play} 30. Qc3 $18 Qg6 31. Nd5+ Qg7 32. Qxg7+ (32. Rxe3 cxd5 33. Qxg7+ Nxg7 $17) 32... Rxg7 33. Nxe3) 30... Qd4 $14 {[%emt 0:01:26]} 31. Rd1 {[%emt 0:01:07] Prevents Qd2+.} e2 $1 {[%emt 0:01:06]} (31... Qg4 32. Qb2+ Ng7 33. Rdf1 Qe4+ 34. Kg1 Qxf5 35. Rxf5 $16) 32. Rxd4 {[%emt 0:00:43][%mdl 8192]} ({Not} 32. Qxe2 $2 {[#]} Nf4+ $1 {[%mdl 512]} 33. Kf1 Nxe2 $19) (32. Re1 $14 {was the only good move.} Qg4 33. Qb2+ (33. Rxe2 $2 Nd4 $19) 33... Nd4 34. Rf4 Qxh5 35. Qxd4+ Qe5 36. Qxe5+ Rxe5 37. Kf2) 32... e1=N+ $19 {[%emt 0:03:10]} 33. Kh3 $2 {[%emt 0:02:24]} (33. Kh1 {was called for.} Nxc2 34. Re4) 33... Nxc2 {[%emt 0:00:00] Pair of Knights!} 34. Rd3 {[%emt 0:00:19]} Ng7 {[%emt 0:00:00]} 35. Nxg7 {[%emt 0:00:23] Black has a decisive advantage.} Kxg7 {[%emt 0:00:00]} 36. Rf2 {[%emt 0:00:31]} Ne1 {[%emt 0:00:26]} 37. Rd4 {[%emt 0:00:39]} Rae8 {[%emt 0:00:23]} 38. Rg4+ {[%emt 0:00:43]} Kh8 {[%emt 0:00:15]} 39. Rh4 {[%emt 0:01:25]} Nd3 {[%emt 0:00:29]} 40. Rf5 {[%emt 0:00:28]} Ne5 {[%emt 0:00:33]} 41. a4 {[%emt 0:00:31]} Ng6 {[%emt 0:00:58]} 42. Rhh5 {[%emt 0:00:10]} Re5 {[%emt 0:00:16] Weighted Error Value: White=0.48/Black=0.34} 0-1

[Event "31st MPL National U18G Chess-ch 2022"]
[Site "Pollachi"]
[Date "2022.04.19"]
[Round "3.4"]
[White "Tejaswi R"]
[Black "Rebecca Jesumarian"]
[Result "1-0"]
[ECO "E87"]
[WhiteElo "1460"]
[BlackElo "1814"]
[Annotator "NA RC"]
[PlyCount "133"]
[EventDate "2022.04.18"]
[EventCountry "IND"]
[SourceTitle "playchess.com"]
[Source "ChessBase"]
[SourceQuality "1"]
[TimeControl "5400+30"]

{[%evp 8,133,43,41,42,33,48,32767,32767,32767,32767,32767,32767,32767,63,49,77,32767,96,97,88,48,58,26,29,16,24,0,40,7,0,-5,-5,-16,0,-8,0,0,0,0,0,0,0,0,0,0,8,0,0,0,16,0,0,-9,-12,-33,0,0,0,0,33,0,0,0,0,0,39,56,47,60,43,0,0,0,0,0,0,-214,-264,-264,-251,-223,-208,-193,-229,-170,-162,-246,-205,-214,0,-45,0,-2,0,0,0,0,0,32767,32767,32767,32767,32767,32767,0,8,8,8,32767,32767,32767,32767,32767,32767,32767,32767,29983,12850,29985,29985,29986,29986,29987,29987,29988,29988,29989]} 1. d4 {[%emt 0:01:01]} Nf6 {[%emt 0:00:56]} 2. c4 {[%emt 0:00:08]} g6 {[%emt 0:00:09]} 3. Nc3 {[%emt 0:00:05]} Bg7 {[%emt 0:00:27]} 4. e4 {[%emt 0:00:08]} d6 {[%emt 0:00:03]} 5. Bd3 {[%emt 0:00:40]} O-O {[%emt 0:00:25]} 6. Nge2 {[%emt 0:01:09]} e5 {[%emt 0:03:16]} 7. d5 {[%emt 0:00:10]} Na6 {[%emt 0:01:36]} 8. f3 {[%emt 0:00:50]} Nc5 {[%emt 0:02:39]} 9. Bc2 {[%emt 0:00:46]} a5 {[%emt 0:00:09]} 10. Be3 {[%emt 0:00:34]} Ne8 {[%emt 0:04:01]} 11. Qd2 {[%emt 0:04:39]} f5 {[%emt 0:04:46]} 12. O-O-O {[%emt 0:03:57]} f4 {[%emt 0:05:40]} (12... fxe4 $14 13. Nxe4 (13. Bxc5 exf3 14. Be3 fxe2 $15) 13... Nxe4 14. fxe4 (14. Bxe4 Qe7 $11) 14... Nf6) 13. Bxc5 {[%emt 0:01:37]} dxc5 {[%emt 0:00:06]} 14. Rdf1 {[%emt 0:02:34]} (14. Ba4 $16) 14... Nd6 {[%emt 0:01:00]} 15. Bd3 {[%emt 0:01:42]} a4 {[%emt 0:06:20]} 16. a3 {[%emt 0:01:48]} Bd7 {[%emt 0:00:28]} 17. Qc2 {[%emt 0:01:44]} b6 {[%emt 0:04:12]} (17... c6 $11) 18. g4 {[%emt 0:01:58]} Bf6 {[%emt 0:03:50]} 19. h3 {[%emt 0:00:58]} Bh4 {[%emt 0:05:27]} 20. Nb5 {[%emt 0:06:39]} Bxb5 {[%emt 0:03:09]} 21. cxb5 {[%emt 0:00:27]} Qe8 {[%emt 0:00:21]} 22. Nc3 {[%emt 0:00:44]} Kh8 {[%emt 0:05:14]} 23. Nxa4 {[%emt 0:05:20]} Nxb5 {[%emt 0:00:22]} 24. Bxb5 {[%emt 0:00:25]} Qxb5 {[%emt 0:00:07]} 25. Nc3 {[%emt 0:00:08]} Qa6 {[%emt 0:04:06]} 26. Qe2 {[%emt 0:01:17]} Qxe2 {[%emt 0:00:53]} 27. Nxe2 {[%emt 0:00:13]} b5 {[%emt 0:02:18]} 28. Kc2 {[%emt 0:00:38]} Be7 {[%emt 0:02:27]} 29. Nc1 {[%emt 0:04:32]} Ra4 {[%emt 0:02:04]} 30. Nd3 {[%emt 0:02:25]} Bd6 $1 {[%emt 0:00:30]} 31. h4 {[%emt 0:05:06]} Rfa8 {[%emt 0:06:26]} (31... h6 $15) 32. g5 {[%emt 0:03:55]} c4 {[%emt 0:00:43]} 33. Nf2 {[%emt 0:03:28]} b4 {[%emt 0:05:16]} 34. axb4 {[%emt 0:00:35]} (34. h5 $14) 34... Rxb4 {[%emt 0:00:11]} 35. h5 {[%emt 0:05:35]} Rab8 {[%emt 0:07:57]} 36. Nd1 {[%emt 0:01:25]} Kg7 {[%emt 0:04:43]} (36... Rg8 $1 $11 {feels stronger.}) 37. hxg6 {[%emt 0:01:26]} hxg6 {[%emt 0:00:06]} 38. Rh6 {[%emt 0:01:32]} Rh8 {[%emt 0:00:41]} 39. Rfh1 {[%emt 0:00:28]} ({White should try} 39. Rxh8 $14 Kxh8 40. Nc3) 39... Rxh6 {[%emt 0:00:39]} 40. gxh6+ {[%emt 0:00:13]} Kh7 {[%emt 0:00:13]} 41. Nf2 $1 {[%emt 0:00:24]} Rb3 {[%emt 0:02:13]} 42. Rh3 $2 {[%emt 0:00:40]} (42. Ng4 $11 Kh8 43. Rh3) 42... Bc5 {[%emt 0:02:40]} 43. Nd1 {[%emt 0:05:28]} ({Worse is} 43. Ng4 Bd4 44. Nf6+ Kh8 $19) 43... Bd4 {[%emt 0:00:48]} 44. Nc3 {[%emt 0:01:00]} Rb6 {[%emt 0:01:23]} 45. Na4 {[%emt 0:03:46]} Rb4 {[%emt 0:00:14]} 46. Nc3 {[%emt 0:00:18]} Rb8 {[%emt 0:00:36]} 47. Rh1 {[%emt 0:02:18] [#]} g5 $1 {[%emt 0:01:36]} 48. Rh5 {[%emt 0:02:16] [#]} Kg6 $2 {[%emt 0:00:10]} (48... Rg8 $1 $19 49. Nb1 g4 50. fxg4 f3) 49. Rh1 {[%emt 0:00:51]} (49. Rh3 $1 $11 {was preferrable.}) 49... Rh8 {[%emt 0:02:33]} (49... g4 $1 $15 {should be considered.} 50. fxg4 f3) 50. Nb5 {[%emt 0:02:29]} Bb6 {[%emt 0:00:32]} 51. d6 {[%emt 0:01:18]} cxd6 {[%emt 0:00:14]} 52. Nxd6 {[%emt 0:00:13]} Rxh6 {[%emt 0:06:00]} 53. Rxh6+ {[%emt 0:02:18]} Kxh6 {[%emt 0:00:04]} 54. Nf7+ {[%emt 0:00:28]} Kh5 {[%emt 0:00:05]} 55. Nxe5 {[%emt 0:00:05]} Bd4 {[%emt 0:00:28]} 56. Nxc4 $11 {[%emt 0:01:02]} Kh4 {[%emt 0:01:41]} 57. Kd3 {[%emt 0:02:21]} Bc5 {[%emt 0:00:35]} 58. Ke2 {[%emt 0:06:10]} Kg3 {[%emt 0:00:55]} 59. e5 {[%emt 0:01:43]} Kg2 {[%emt 0:01:33]} 60. Nd2 {[%emt 0:01:04]} Bb4 {[%emt 0:01:24]} 61. e6 {[%emt 0:01:38]} g4 {[%emt 0:00:45]} 62. fxg4 {[%emt 0:02:12]} Bxd2 {[%emt 0:00:08]} 63. Kxd2 {[%emt 0:00:24]} f3 {[%emt 0:00:26]} 64. e7 {[%emt 0:00:06]} f2 {[%emt 0:00:06]} 65. e8=Q {[%emt 0:00:10]} f1=Q {[%emt 0:00:47]} 66. Qe2+ {[%emt 0:00:08]} Qxe2+ {[%emt 0:00:14]} 67. Kxe2 {[%emt 0:00:01]} 1-0

[Event "31st MPL National U18G Chess-ch 2022"]
[Site "Pollachi"]
[Date "2022.04.19"]
[Round "3.5"]
[White "Azal Nasir"]
[Black "Keerti Shree Reddy"]
[Result "0-1"]
[ECO "B28"]
[WhiteElo "1459"]
[BlackElo "1721"]
[Annotator "NA RC"]
[PlyCount "74"]
[EventDate "2022.04.18"]
[EventCountry "IND"]
[SourceTitle "playchess.com"]
[Source "ChessBase"]
[SourceQuality "1"]
[TimeControl "5400+30"]

1. e4 {[%emt 0:06:01]} c5 {[%emt 0:01:47]} 2. Nf3 {[%emt 0:00:39]} a6 {[%emt 0:00:22]} 3. d4 {[%emt 0:00:28]} cxd4 {[%emt 0:00:13]} 4. Nxd4 {[%emt 0:00:08]} Nf6 {[%emt 0:00:10]} 5. Nc3 {[%emt 0:00:07]} e5 {[%emt 0:00:10]} 6. Nb3 {[%emt 0:00:18]} Bb4 {[%emt 0:00:13]} 7. Bd3 {[%emt 0:05:36]} Bxc3+ {[%emt 0:00:33]} 8. bxc3 {[%emt 0:00:03]} d6 {[%emt 0:00:02]} 9. O-O {[%emt 0:00:54]} O-O {[%emt 0:00:07]} 10. f4 {[%emt 0:00:56]} Qc7 {[%emt 0:11:39]} 11. Qe1 {[%emt 0:08:21]} b5 {[%emt 0:07:50]} 12. Qg3 {[%emt 0:15:48]} Nh5 {[%emt 0:08:10]} 13. Qh4 {[%emt 0:02:49]} Nxf4 {[%emt 0:00:48]} 14. Bxf4 {[%emt 0:00:33]} exf4 {[%emt 0:00:06]} 15. Qxf4 {[%emt 0:00:16]} Nd7 {[%emt 0:01:38]} 16. Rad1 {[%emt 0:06:17]} Ne5 {[%emt 0:02:40]} 17. Nd4 {[%emt 0:04:38]} Qxc3 {[%emt 0:07:03]} 18. Nf5 {[%emt 0:01:36]} Bxf5 {[%emt 0:01:30]} 19. exf5 {[%emt 0:02:14]} Nxd3 {[%emt 0:10:31]} 20. Rxd3 {[%emt 0:01:22]} Qxc2 {[%emt 0:01:02]} 21. Qxd6 {[%emt 0:09:04]} f6 {[%emt 0:04:50]} 22. Qd5+ {[%emt 0:01:43]} Kh8 {[%emt 0:00:13]} 23. Rg3 {[%emt 0:04:32]} Ra7 {[%emt 0:05:53]} 24. a3 {[%emt 0:05:37]} Rc7 {[%emt 0:03:00]} 25. Kh1 {[%emt 0:02:12]} Qc4 {[%emt 0:06:45]} 26. Qf3 {[%emt 0:01:29]} Rfc8 {[%emt 0:02:49]} 27. Rd1 {[%emt 0:02:37]} Qc2 {[%emt 0:02:27]} 28. Rf1 {[%emt 0:02:27]} Rc3 {[%emt 0:02:22]} 29. Qb7 {[%emt 0:03:53]} Rxg3 {[%emt 0:00:58]} 30. hxg3 {[%emt 0:00:03]} Qc6 {[%emt 0:01:29]} 31. Qe7 {[%emt 0:01:16]} Qc7 {[%emt 0:01:41]} 32. Qxc7 {[%emt 0:00:59]} Rxc7 {[%emt 0:00:01]} 33. Rd1 {[%emt 0:00:14]} h5 {[%emt 0:04:45]} 34. Rd6 {[%emt 0:00:50]} a5 {[%emt 0:01:31]} 35. Rd3 {[%emt 0:03:43]} Rc5 {[%emt 0:01:41]} 36. Rf3 {[%emt 0:00:10]} Kh7 {[%emt 0:00:35]} 37. Kh2 {[%emt 0:00:18]} Kh6 {[%emt 0:00:13]} 0-1

[Event "31st MPL National U18G Chess-ch 2022"]
[Site "Pollachi"]
[Date "2022.04.19"]
[Round "3.6"]
[White "Sachi Jain"]
[Black "Jeevika S"]
[Result "1-0"]
[ECO "B82"]
[WhiteElo "1401"]
[BlackElo "1239"]
[Annotator "NA RC"]
[PlyCount "77"]
[EventDate "2022.04.18"]
[EventCountry "IND"]
[SourceTitle "playchess.com"]
[Source "ChessBase"]
[SourceQuality "1"]
[TimeControl "5400+30"]

1. e4 {[%emt 0:00:17]} c5 {[%emt 0:00:07]} 2. Nf3 {[%emt 1:31:13]} d6 {[%emt 0:00:12]} 3. d4 {[%emt 0:00:00]} cxd4 {[%emt 0:00:15]} 4. Nxd4 {[%emt 0:00:00]} Nf6 {[%emt 0:00:11]} 5. Nc3 {[%emt 0:00:00]} a6 {[%emt 0:00:07]} 6. f4 {[%emt 0:02:00]} e6 {[%emt 0:00:31]} 7. Nf3 {[%emt 0:00:00]} Be7 {[%emt 0:00:18]} 8. Bd3 {[%emt 0:00:00]} O-O {[%emt 0:00:55]} 9. O-O {[%emt 0:00:00]} Nbd7 {[%emt 0:00:49]} 10. Kh1 {[%emt 0:00:00]} b5 {[%emt 0:00:18]} 11. a3 {[%emt 0:00:00]} Bb7 {[%emt 0:00:12]} 12. Qe1 {[%emt 0:00:00]} Nc5 {[%emt 0:07:09]} 13. b4 {[%emt 0:00:00]} Ncd7 {[%emt 0:00:50]} 14. Qg3 {[%emt 0:00:00]} Rc8 {[%emt 0:00:49]} 15. Bd2 {[%emt 0:00:00]} Nb6 {[%emt 0:00:23]} 16. Qh3 {[%emt 0:00:00]} Nc4 {[%emt 0:00:51]} 17. e5 {[%emt 0:00:00]} Bxf3 {[%emt 0:23:39]} 18. exf6 {[%emt 0:00:00]} g6 {[%emt 0:00:09]} 19. fxe7 {[%emt 0:00:00]} Qxe7 {[%emt 0:00:11]} 20. Rxf3 {[%emt 0:00:00]} Nxd2 {[%emt 0:00:14]} 21. Rf2 {[%emt 0:00:00]} Rxc3 {[%emt 0:00:34]} 22. Rxd2 {[%emt 0:00:00]} e5 {[%emt 0:00:36]} 23. fxe5 {[%emt 0:00:00]} dxe5 {[%emt 0:00:18]} 24. Qe3 {[%emt 0:00:00]} Rd8 {[%emt 0:01:03]} 25. Re2 {[%emt 0:00:00]} f6 {[%emt 0:05:21]} 26. h3 {[%emt 0:00:00]} Re8 {[%emt 0:02:22]} 27. Rae1 {[%emt 0:00:00]} Kh8 {[%emt 0:00:27]} 28. Qh6 {[%emt 0:00:00]} Qf7 {[%emt 0:01:45]} 29. Re3 {[%emt 0:00:00]} f5 {[%emt 0:04:22]} 30. Rxe5 {[%emt 0:00:00]} Rcc8 {[%emt 0:02:07]} 31. Qe3 {[%emt 0:00:00]} Red8 {[%emt 0:02:39]} 32. Re7 {[%emt 0:00:00]} Qf6 {[%emt 0:00:15]} 33. Qh6 {[%emt 0:00:00]} Kg8 {[%emt 0:01:10]} 34. Qxh7+ {[%emt 0:00:00]} Kf8 {[%emt 0:00:07]} 35. Qh6+ {[%emt 0:00:00]} Kg8 {[%emt 0:00:15]} 36. R1e6 {[%emt 0:00:00]} Qa1+ {[%emt 0:08:28]} 37. Kh2 {[%emt 0:00:00]} Qh8 {[%emt 0:01:08]} 38. Rxg6+ {[%emt 0:00:00]} Qg7 {[%emt 0:00:11]} 39. Qxg7# {[%emt 0:00:00]} 1-0

[Event "31st MPL National U18G Chess-ch 2022"]
[Site "Pollachi"]
[Date "2022.04.19"]
[Round "3.7"]
[White "Sevitha Viju M"]
[Black "Ishvi Aggarwal"]
[Result "0-1"]
[ECO "E14"]
[WhiteElo "1304"]
[BlackElo "1833"]
[Annotator "NA RC"]
[PlyCount "128"]
[EventDate "2022.04.18"]
[EventCountry "IND"]
[SourceTitle "playchess.com"]
[Source "ChessBase"]
[SourceQuality "1"]
[TimeControl "5400+30"]

{[%evp 8,127,8,12,16,0,0,0,3,0,26,11,21,17,22,23,10,32767,43,50,92,80,90,84,83,78,80,83,88,0,0,0,0,-23,-10,-71,-57,-69,-58,-69,-71,-58,-64,-82,-10,-13,35,37,35,35,27,14,226,223,246,52,60,61,97,99,107,56,43,22,31,19,30,20,28,29,16,32767,32767,32767,32767,0,0,-1204,-2270,-1033,-891,-5097,-4132,-1893,-6227,-5093,-11262,-12842,-12814,-29982,-29983,-29981,-29984,-29985,-29986,-12849,-29987,-29987,-29988,-29988,-29989,-27997,-29990,-29992,-27996,-29993,-29991,-29992,-29991,-29993,-29994,-29995,-27997,-27998,-29997,-29997,-29998,-29998,-29998,-29998,-29999,-29999]} 1. c4 {[%emt 0:00:03]} e6 {[%emt 0:00:04]} 2. Nf3 {[%emt 0:00:09]} Nf6 {[%emt 0:00:06]} 3. Nc3 {[%emt 0:00:10]} d5 {[%emt 0:00:12]} 4. e3 {[%emt 0:00:12]} Be7 {[%emt 0:00:16]} 5. b3 {[%emt 0:00:22]} b6 {[%emt 0:00:55]} 6. Bb2 {[%emt 0:00:13]} Bb7 {[%emt 0:00:07]} 7. cxd5 {[%emt 0:00:45]} exd5 {[%emt 0:00:09]} 8. d4 {[%emt 0:00:22]} O-O {[%emt 0:01:10]} 9. Bd3 {[%emt 0:01:02]} Nbd7 {[%emt 0:03:10]} 10. O-O {[%emt 0:01:07]} Ne4 {[%emt 0:02:43]} 11. Qc2 {[%emt 0:04:07]} Ndf6 {[%emt 0:07:28]} 12. Rac1 {[%emt 0:04:44]} Rc8 {[%emt 0:03:46]} 13. Nb5 $1 {[%emt 0:07:19]} a6 {[%emt 0:02:12] [#]} (13... c5 $14) 14. Na7 $1 {[%emt 0:01:11]} ({Avoid the trap} 14. Nxc7 $2 Bd6 15. Qe2 (15. Bxe4 $2 dxe4 16. Ne5 Bxc7 $19) 15... Rxc7 $19) 14... Ra8 {[%emt 0:00:14]} 15. Nc6 {[%emt 0:00:15]} Bxc6 {[%emt 0:00:43]} 16. Qxc6 {[%emt 0:00:07]} Bd6 {[%emt 0:01:47]} 17. Ne5 {[%emt 0:03:12]} Qe8 {[%emt 0:05:53]} 18. Bxe4 {[%emt 0:09:47]} (18. f3 $16 Nc5 19. Be2 (19. dxc5 Bxe5 20. Qxe8 Rfxe8 $14)) 18... dxe4 {[%emt 0:00:52]} 19. Qxe8 {[%emt 0:02:20]} Rfxe8 {[%emt 0:00:37]} 20. Rc6 {[%emt 0:00:53]} Re6 {[%emt 0:11:29]} 21. Rd1 {[%emt 0:03:28]} (21. Rcc1 $11) 21... Bxe5 {[%emt 0:03:12]} 22. Rxe6 {[%emt 0:00:10] [#]} Bxh2+ $1 {[%emt 0:00:08]} 23. Kxh2 {[%emt 0:00:14]} fxe6 {[%emt 0:00:04]} 24. Rc1 {[%emt 0:00:58]} Nd5 {[%emt 0:01:20]} 25. Kg3 {[%emt 0:00:47]} Kf7 {[%emt 0:02:44]} (25... Rf8 $17) 26. f3 $1 {[%emt 0:03:39]} Rc8 {[%emt 0:14:34]} (26... Nxe3 $2 27. fxe4 (27. Rxc7+ Kg6 $16) 27... h5 28. Rxc7+ Kf8 29. d5 exd5 30. Kf3 $18 (30. Bxg7+ Ke8 $18)) (26... exf3 $11 27. e4 Ne7) 27. fxe4 {[%emt 0:00:19]} Nf6 {[%emt 0:00:12]} (27... Nxe3 $2 28. Kf3 $18) 28. e5 {[%emt 0:00:43]} Nd7 {[%emt 0:01:40]} 29. e4 {[%emt 0:02:59]} Kg6 $2 {[%emt 0:04:41]} (29... a5 $11) 30. Rc6 {[%emt 0:00:25]} Kf7 {[%emt 0:00:28] [#]} 31. Ba3 $2 {[%emt 0:00:49]} (31. d5 $1 $18 {[%cal Rd5e6]}) 31... Nb8 $1 {[%emt 0:00:40]} 32. Rc1 {[%emt 0:00:59]} Nd7 {[%emt 0:01:55] [#]} (32... c5 $14) 33. Bd6 $1 {[%emt 0:00:21]} c5 {[%emt 0:01:31]} 34. d5 {[%emt 0:00:08]} (34. a4 $16) 34... Re8 {[%emt 0:00:36]} 35. Rf1+ {[%emt 0:01:50]} Kg6 {[%emt 0:00:44]} 36. dxe6 {[%emt 0:01:19]} Rxe6 {[%emt 0:00:39]} 37. Rf5 {[%emt 0:00:14]} h6 {[%emt 0:03:19]} 38. Kf4 {[%emt 0:00:26]} b5 {[%emt 0:06:04]} 39. Ke3 {[%emt 0:01:01]} Kh7 {[%emt 0:01:05]} 40. Rf7 {[%emt 0:00:35]} Nxe5 {[%emt 0:00:42]} 41. Bxe5 {[%emt 0:00:46]} Rxe5 {[%emt 0:00:01]} 42. Rf5 $2 {[%emt 0:00:20]} (42. Rc7 $11) 42... Rxf5 {[%emt 0:01:07]} 43. exf5 {[%emt 0:00:05] [#]} h5 $1 {[%emt 0:06:35]} 44. Ke4 {[%emt 0:01:53]} Kh6 {[%emt 0:00:24]} 45. Kd5 {[%emt 0:00:04]} Kg5 {[%emt 0:00:12]} 46. Kxc5 {[%emt 0:00:05]} Kxf5 {[%emt 0:00:12]} 47. Kb6 {[%emt 0:03:11]} b4 {[%emt 0:01:30]} 48. Kxa6 {[%emt 0:00:09]} h4 {[%emt 0:00:21]} 49. Kb5 {[%emt 0:00:12]} g5 {[%emt 0:00:06]} 50. Kxb4 {[%emt 0:00:21]} g4 {[%emt 0:00:22]} 51. a4 {[%emt 0:00:12]} h3 {[%emt 0:00:10]} 52. gxh3 {[%emt 0:00:09]} gxh3 {[%emt 0:00:15]} 53. a5 {[%emt 0:00:10]} h2 {[%emt 0:00:06]} 54. Kb5 {[%emt 0:00:12]} h1=Q {[%emt 0:00:15]} 55. b4 {[%emt 0:00:11]} Qb7+ {[%emt 0:01:01]} 56. Kc5 {[%emt 0:00:07]} Ke6 {[%emt 0:00:16]} 57. b5 {[%emt 0:00:09]} Qa7+ {[%emt 0:00:28]} 58. Kc6 {[%emt 0:00:13]} Qxa5 {[%emt 0:00:44]} 59. b6 {[%emt 0:00:07]} Qc3+ {[%emt 0:00:17]} 60. Kb7 {[%emt 0:00:07]} Kd7 {[%emt 0:00:19]} 61. Ka7 {[%emt 0:00:15]} Kc6 {[%emt 0:00:53]} 62. b7 {[%emt 0:00:23]} Qa5+ {[%emt 0:00:05]} 63. Kb8 {[%emt 0:00:04]} Qc7+ {[%emt 0:00:07]} 64. Ka8 {[%emt 0:00:05]} Qxb7# {[%emt 0:00:06]} 0-1